[Event "1st SOA-GM Festival 2024"]
[Site "Bhubaneswar"]
[Date "2024.02.01"]
[Round "6.1"]
[White "Vignesh Advaith Vemula"]
[Black "Goutham Krishna H"]
[Result "1-0"]
[WhiteElo "2028"]
[BlackElo "2288"]
[PlyCount "83"]
[EventDate "2024.02.01"]
[EventType "swiss"]
[EventCountry "IND"]
[TimeControl "5400+30"]

1. e4 {[%emt 0:00:02]} c5 {[%emt 0:00:12]} 2. Nf3 {[%emt 0:00:05]} d6 {[%emt 0:00:08]} 3. d4 {[%emt 0:00:04]} cxd4 {[%emt 0:00:04]} 4. Nxd4 {[%emt 0:00:07]} Nf6 {[%emt 0:00:08]} 5. Nc3 {[%emt 0:00:05]} a6 {[%emt 0:00:06]} 6. f3 {[%emt 0:00:28]} e6 {[%emt 0:00:24]} 7. Be3 {[%emt 0:00:05]} b5 {[%emt 0:00:19]} 8. a3 {[%emt 0:00:06]} h5 {[%emt 0:01:10]} 9. Qd2 {[%emt 0:00:05]} Nbd7 {[%emt 0:00:22]} 10. O-O-O {[%emt 0:00:05]} Bb7 {[%emt 0:00:15]} 11. Kb1 {[%emt 0:00:11]} Be7 {[%emt 0:00:22]} 12. Rg1 {[%emt 0:00:09]} Rc8 {[%emt 0:00:56]} 13. Be2 {[%emt 0:00:10]} Nb6 {[%emt 0:00:43]} 14. Bg5 {[%emt 0:00:11]} Rc5 {[%emt 0:00:55]} 15. h4 {[%emt 0:00:17]} O-O {[%emt 0:00:59]} 16. Rde1 {[%emt 0:00:03]} Nbd7 {[%emt 0:08:14]} 17. Nd1 {[%emt 0:20:37]} d5 {[%emt 0:10:01]} 18. exd5 {[%emt 0:00:26]} Rxd5 {[%emt 0:04:25]} 19. Nc3 {[%emt 0:02:07]} Rd6 {[%emt 0:00:35]} 20. Qe3 {[%emt 0:00:36]} Nb6 {[%emt 0:02:00]} 21. Rd1 {[%emt 0:03:37]} Nfd5 {[%emt 0:08:00]} 22. Nxd5 {[%emt 0:01:18]} Nxd5 {[%emt 0:00:03]} 23. Qc1 {[%emt 0:02:20]} Bxg5 {[%emt 0:05:56]} 24. hxg5 {[%emt 0:00:14]} b4 {[%emt 0:01:01]} 25. axb4 {[%emt 0:09:41]} Nxb4 {[%emt 0:01:43]} 26. c3 {[%emt 0:00:52]} Qb6 {[%emt 0:08:23]} 27. g6 {[%emt 0:11:40]} fxg6 {[%emt 0:02:59]} 28. Bc4 {[%emt 0:00:21]} Rc8 {[%emt 0:04:14]} 29. Bb3 {[%emt 0:08:46]} Bd5 {[%emt 0:02:44]} 30. c4 {[%emt 0:05:18]} Nc6 {[%emt 0:33:30]} 31. cxd5 {[%emt 0:00:35]} Nxd4 {[%emt 0:05:09]} 32. Qxc8+ {[%emt 0:00:06]} Rd8 {[%emt 0:00:00]} 33. Qc3 {[%emt 0:01:42]} Nxb3 {[%emt 0:00:00]} 34. Rge1 {[%emt 0:00:32]} Nc5 {[%emt 0:00:00]} 35. dxe6 {[%emt 0:00:26]} Rxd1+ {[%emt 0:00:00]} 36. Rxd1 {[%emt 0:00:06]} Nxe6 {[%emt 0:00:00]} 37. Qe5 {[%emt 0:00:58]} Nc5 {[%emt 0:03:00]} 38. Qe8+ {[%emt 0:00:23]} Kh7 {[%emt 0:00:00]} 39. Rd8 {[%emt 0:00:08]} Kh6 {[%emt 0:00:00]} 40. f4 {[%emt 0:00:12]} g5 {[%emt 0:00:00]} 41. fxg5+ {[%emt 0:00:05]} Kxg5 {[%emt 0:00:00]} 42. Rd5+ {[%emt 0:00:01]} 1-0

[Event "1st SOA-GM Festival 2024"]
[Site "Bhubaneswar"]
[Date "2024.02.01"]
[Round "6.2"]
[White "Ghosh, Diptayan"]
[Black "Audi Ameya"]
[Result "1/2-1/2"]
[WhiteElo "2568"]
[BlackElo "2385"]
[PlyCount "124"]
[EventDate "2024.02.01"]
[EventType "swiss"]
[EventCountry "IND"]
[TimeControl "5400+30"]

1. d4 {[%emt 0:00:23]} Nf6 {[%emt 0:00:05]} 2. Nf3 {[%emt 0:00:05]} g6 {[%emt 0:00:05]} 3. Nbd2 {[%emt 0:00:05]} d5 {[%emt 0:02:47]} 4. b3 {[%emt 0:00:40]} Bg7 {[%emt 0:00:53]} 5. Bb2 {[%emt 0:00:05]} c5 {[%emt 0:03:40]} 6. dxc5 {[%emt 0:00:54]} Qa5 {[%emt 0:00:15]} 7. a3 {[%emt 0:00:33]} Qxc5 {[%emt 0:00:07]} 8. e3 {[%emt 0:00:06]} O-O {[%emt 0:01:21]} 9. c4 {[%emt 0:02:05]} b6 {[%emt 0:05:39]} 10. Rc1 {[%emt 0:04:13]} Nbd7 {[%emt 0:10:25]} 11. b4 {[%emt 0:05:59]} Qd6 {[%emt 0:00:03]} 12. cxd5 {[%emt 0:01:11]} Qxd5 {[%emt 0:00:03]} 13. Bc4 {[%emt 0:01:27]} Qh5 {[%emt 0:00:11]} 14. Be2 {[%emt 0:03:13]} Bb7 {[%emt 0:02:28]} 15. Rc7 {[%emt 0:03:46]} Rab8 {[%emt 0:03:59]} 16. O-O {[%emt 0:04:01]} Rfd8 {[%emt 0:18:55]} 17. Ne5 {[%emt 0:14:57]} Qg5 {[%emt 0:02:35]} 18. Ndf3 {[%emt 0:06:17]} Qf5 {[%emt 0:01:12]} 19. Nh4 {[%emt 0:15:12]} Qe4 {[%emt 0:24:07]} 20. Nxd7 {[%emt 0:01:14]} Nxd7 {[%emt 0:00:13]} 21. Bxg7 {[%emt 0:07:50]} Nf6 {[%emt 0:00:03]} 22. Qa4 {[%emt 0:06:08]} Kxg7 {[%emt 0:01:28]} 23. Qxa7 {[%emt 0:03:26]} Nd5 {[%emt 0:00:21]} 24. Rc4 {[%emt 0:01:53]} Qe6 {[%emt 0:01:07]} 25. Nf3 {[%emt 0:04:50]} Qd7 {[%emt 0:00:03]} 26. Ne5 {[%emt 0:01:42]} Qd6 {[%emt 0:00:03]} 27. Nf3 {[%emt 0:02:45]} Bc6 {[%emt 0:00:43]} 28. Nd4 {[%emt 0:03:03]} Be8 {[%emt 0:00:27]} 29. Bf3 {[%emt 0:01:28]} e5 {[%emt 0:00:38]} 30. Rd1 {[%emt 0:00:50]} Ra8 {[%emt 0:10:21]} 31. Qb7 {[%emt 0:00:04]} exd4 {[%emt 0:00:04]} 32. Rdxd4 {[%emt 0:01:31]} Rxa3 {[%emt 0:00:47]} 33. Rc1 {[%emt 0:00:37]} Qe5 {[%emt 0:05:13]} 34. h3 {[%emt 0:03:16]} Rxe3 {[%emt 0:02:05]} 35. Rxd5 {[%emt 0:00:04]} Rxd5 {[%emt 0:00:44]} 36. Qxd5 {[%emt 0:00:28]} Re1+ {[%emt 0:00:02]} 37. Rxe1 {[%emt 0:00:05]} Qxe1+ {[%emt 0:00:02]} 38. Kh2 {[%emt 0:00:01]} Qxb4 {[%emt 0:00:59]} 39. Qe5+ {[%emt 0:00:05]} Kf8 {[%emt 0:00:02]} 40. Qh8+ {[%emt 0:00:07]} Ke7 {[%emt 0:00:02]} 41. Qe5+ {[%emt 0:00:26]} Kf8 {[%emt 0:00:10]} 42. Qh8+ {[%emt 0:00:02]} Ke7 {[%emt 0:00:02]} 43. Qe5+ {[%emt 0:00:05]} Kd7 {[%emt 0:02:00]} 44. Bc6+ {[%emt 0:00:10]} Kxc6 {[%emt 0:00:03]} 45. Qxe8+ {[%emt 0:00:04]} Kc5 {[%emt 0:00:09]} 46. Qe7+ {[%emt 0:01:05]} Kc4 {[%emt 0:01:13]} 47. Qxf7+ {[%emt 0:00:13]} Kc3 {[%emt 0:00:03]} 48. Qxh7 {[%emt 0:03:43]} Qd6+ {[%emt 0:00:22]} 49. Kg1 {[%emt 0:01:45]} b5 {[%emt 0:00:15]} 50. Qh8+ {[%emt 0:00:27]} Kc2 {[%emt 0:00:45]} 51. Qc8+ {[%emt 0:00:11]} Kd2 {[%emt 0:00:13]} 52. h4 {[%emt 0:00:44]} b4 {[%emt 0:00:10]} 53. Qc4 {[%emt 0:00:04]} Qb6 {[%emt 0:00:48]} 54. Qa2+ {[%emt 0:00:30]} Kc3 {[%emt 0:00:39]} 55. Qa1+ {[%emt 0:00:01]} Kc4 {[%emt 0:00:56]} 56. Qc1+ {[%emt 0:00:19]} Kb5 {[%emt 0:00:45]} 57. Qf1+ {[%emt 0:00:07]} Kc5 {[%emt 0:00:25]} 58. Qc1+ {[%emt 0:00:01]} Kd5 {[%emt 0:00:10]} 59. Qg5+ {[%emt 0:00:49]} Kc4 {[%emt 0:00:05]} 60. Qc1+ {[%emt 0:00:03]} Kb5 {[%emt 0:00:31]} 61. Qf1+ {[%emt 0:00:08]} Ka4 {[%emt 0:00:17]} 62. Qa1+ {[%emt 0:00:05]} Kb5 {[%emt 0:00:04]} 1/2-1/2

[Event "1st SOA-GM Festival 2024"]
[Site "Bhubaneswar"]
[Date "2024.02.01"]
[Round "6.3"]
[White "Das, Sayantan"]
[Black "Ayush Sharma"]
[Result "1/2-1/2"]
[WhiteElo "2514"]
[BlackElo "2378"]
[PlyCount "117"]
[EventDate "2024.02.01"]
[EventType "swiss"]
[EventCountry "IND"]
[TimeControl "5400+30"]

1. d4 {[%emt 0:00:40]} Nf6 {[%emt 0:00:12]} 2. Bf4 {[%emt 0:00:16]} c5 {[%emt 0:02:35]} 3. e3 {[%emt 0:01:45]} Qb6 {[%emt 0:01:13]} 4. Nc3 {[%emt 0:05:44]} e6 {[%emt 0:03:47]} 5. Rb1 {[%emt 0:06:59]} Nc6 {[%emt 0:02:35]} 6. Nb5 {[%emt 0:10:44]} Nd5 {[%emt 0:01:19]} 7. Bd6 {[%emt 0:02:02]} a6 {[%emt 0:05:34]} 8. dxc5 {[%emt 0:08:58]} Qa5+ {[%emt 0:00:02]} 9. Nc3 {[%emt 0:00:18]} Nxc3 {[%emt 0:03:11]} 10. bxc3 {[%emt 0:00:13]} Qxc3+ {[%emt 0:09:06]} 11. Qd2 {[%emt 0:00:34]} Qxd2+ {[%emt 0:00:03]} 12. Kxd2 {[%emt 0:00:02]} b5 {[%emt 0:00:47]} 13. a3 {[%emt 0:15:21]} Bxd6 {[%emt 0:06:47]} 14. cxd6 {[%emt 0:00:03]} h5 {[%emt 0:00:01]} 15. c4 {[%emt 0:04:02]} bxc4 {[%emt 0:01:16]} 16. Bxc4 {[%emt 0:10:33]} Rh6 {[%emt 0:00:02]} 17. Nf3 {[%emt 0:06:56]} e5 {[%emt 0:00:08]} 18. e4 {[%emt 0:00:17]} Rxd6+ {[%emt 0:00:14]} 19. Ke3 {[%emt 0:00:15]} f6 {[%emt 0:16:27]} 20. Bd5 {[%emt 0:04:29]} a5 {[%emt 0:03:38]} 21. Nh4 {[%emt 0:03:04]} Rxd5 {[%emt 0:02:59]} 22. exd5 {[%emt 0:00:06]} Nd4 {[%emt 0:00:13]} 23. Rhc1 {[%emt 0:01:21]} Ba6 {[%emt 0:00:40]} 24. Rc5 {[%emt 0:02:09]} a4 {[%emt 0:03:02]} 25. Rb6 {[%emt 0:04:14]} Bf1 {[%emt 0:02:46]} 26. f4 {[%emt 0:01:20]} Nb3 {[%emt 0:00:02]} 27. Rc7 {[%emt 0:00:59]} exf4+ {[%emt 0:00:10]} 28. Kf2 {[%emt 0:04:55]} Bd3 {[%emt 0:00:02]} 29. Nf3 {[%emt 0:01:11]} Be4 {[%emt 0:01:29]} 30. d6 {[%emt 0:00:34]} Bc6 {[%emt 0:00:09]} 31. Nh4 {[%emt 0:04:45]} Nd4 {[%emt 0:01:29]} 32. Ng6 {[%emt 0:00:30]} Nf5 {[%emt 0:02:44]} 33. Nxf4 {[%emt 0:01:03]} Nxd6 {[%emt 0:00:03]} 34. Nxh5 {[%emt 0:00:31]} Kd8 {[%emt 0:01:02]} 35. Rbxc6 {[%emt 0:00:19]} dxc6 {[%emt 0:00:02]} 36. Rxg7 {[%emt 0:00:13]} Ra5 {[%emt 0:00:01]} 37. Nf4 {[%emt 0:00:56]} Ke8 {[%emt 0:02:48]} 38. g4 {[%emt 0:00:26]} Rg5 {[%emt 0:01:58]} 39. Rxg5 {[%emt 0:00:40]} fxg5 {[%emt 0:00:01]} 40. Ne6 {[%emt 0:00:06]} Nb5 {[%emt 0:00:18]} 41. Nc5 {[%emt 0:00:28]} Nxa3 {[%emt 0:00:07]} 42. Nxa4 {[%emt 0:00:03]} Nc4 {[%emt 0:01:01]} 43. Nc5 {[%emt 0:00:15]} Ne5 {[%emt 0:00:50]} 44. h3 {[%emt 0:00:06]} Kf7 {[%emt 0:01:31]} 45. Ne4 {[%emt 0:00:26]} Kg6 {[%emt 0:00:05]} 46. Ke3 {[%emt 0:00:10]} Nd7 {[%emt 0:00:25]} 47. Kd4 {[%emt 0:00:11]} Nf6 {[%emt 0:00:46]} 48. Nf2 {[%emt 0:00:55]} Nd7 {[%emt 0:00:01]} 49. Kc4 {[%emt 0:01:45]} Kf6 {[%emt 0:00:07]} 50. Kd4 {[%emt 0:00:24]} Kg6 {[%emt 0:00:02]} 51. Nd1 {[%emt 0:00:49]} Kf6 {[%emt 0:00:19]} 52. Nc3 {[%emt 0:00:18]} Kg6 {[%emt 0:00:14]} 53. Ne2 {[%emt 0:00:15]} Kf6 {[%emt 0:00:36]} 54. Ke4 {[%emt 0:00:17]} Nc5+ {[%emt 0:00:09]} 55. Ke3 {[%emt 0:00:22]} Ne6 {[%emt 0:00:23]} 56. Ke4 {[%emt 0:00:23]} Nc5+ {[%emt 0:00:22]} 57. Kd4 {[%emt 0:00:38]} Ne6+ {[%emt 0:00:03]} 58. Ke4 {[%emt 0:00:05]} Nc5+ {[%emt 0:00:03]} 59. Kd4 {[%emt 0:00:19]} 1/2-1/2

[Event "1st SOA-GM Festival 2024"]
[Site "Bhubaneswar"]
[Date "2024.02.01"]
[Round "6.4"]
[White "Nguyen Van Huy"]
[Black "Tahbaz, Arash"]
[Result "0-1"]
[WhiteElo "2364"]
[BlackElo "2425"]
[PlyCount "120"]
[EventDate "2024.02.01"]
[EventType "swiss"]
[EventCountry "IND"]
[TimeControl "5400+30"]

1. d4 {[%emt 0:00:33]} Nf6 {[%emt 0:00:58]} 2. c4 {[%emt 0:00:27]} e6 {[%emt 0:00:30]} 3. Nf3 {[%emt 0:00:38]} d5 {[%emt 0:00:11]} 4. g3 {[%emt 0:00:45]} Be7 {[%emt 0:00:19]} 5. Bg2 {[%emt 0:00:35]} O-O {[%emt 0:00:06]} 6. O-O {[%emt 0:00:37]} dxc4 {[%emt 0:00:41]} 7. Qc2 {[%emt 0:00:46]} b6 {[%emt 0:00:19]} 8. Bg5 {[%emt 0:03:05]} Nd5 {[%emt 0:00:44]} 9. Bxe7 {[%emt 0:01:08]} Qxe7 {[%emt 0:00:04]} 10. Nbd2 {[%emt 0:03:06]} b5 {[%emt 0:03:35]} 11. b3 {[%emt 0:06:04]} c3 {[%emt 0:00:07]} 12. Nb1 {[%emt 0:03:23]} b4 {[%emt 0:02:28]} 13. a3 {[%emt 0:00:54]} Nc6 {[%emt 0:08:01]} 14. Re1 {[%emt 0:13:34]} Bb7 {[%emt 0:04:40]} 15. axb4 {[%emt 0:02:19]} Ncxb4 {[%emt 0:00:14]} 16. Qc1 {[%emt 0:00:51]} c5 {[%emt 0:17:55]} 17. Nxc3 {[%emt 0:00:30]} Nxc3 {[%emt 0:02:01]} 18. Qxc3 {[%emt 0:01:22]} Bxf3 {[%emt 0:00:28]} 19. Bxf3 {[%emt 0:03:32]} cxd4 {[%emt 0:00:16]} 20. Qd2 {[%emt 0:14:03]} Rab8 {[%emt 0:00:06]} 21. Ra4 {[%emt 0:01:44]} Rfd8 {[%emt 0:03:59]} 22. Be4 {[%emt 0:01:03]} g6 {[%emt 0:01:35]} 23. Rc1 {[%emt 0:00:57]} e5 {[%emt 0:16:47]} 24. Rc4 {[%emt 0:04:01]} Nd5 {[%emt 0:01:15]} 25. Bxd5 {[%emt 0:00:26]} Rxd5 {[%emt 0:00:05]} 26. Qc2 {[%emt 0:03:55]} Rb7 {[%emt 0:05:59]} 27. Rc8+ {[%emt 0:04:46]} Kg7 {[%emt 0:00:15]} 28. Rac4 {[%emt 0:00:19]} Rdd7 {[%emt 0:18:05]} 29. h4 {[%emt 0:02:00]} h5 {[%emt 0:01:41]} 30. R4c5 {[%emt 0:05:43]} e4 {[%emt 0:01:24]} 31. Rc4 {[%emt 0:10:17]} e3 {[%emt 0:02:51]} 32. Qd3 {[%emt 0:02:27]} exf2+ {[%emt 0:01:30]} 33. Kxf2 {[%emt 0:00:11]} Rb6 {[%emt 0:00:20]} 34. R8c6 {[%emt 0:01:23]} Rxc6 {[%emt 0:04:35]} 35. Rxc6 {[%emt 0:00:04]} Qe5 {[%emt 0:00:19]} 36. Rc4 {[%emt 0:00:36]} Rd6 {[%emt 0:00:04]} 37. Ke1 {[%emt 0:00:31]} Qa5+ {[%emt 0:01:27]} 38. Kd1 {[%emt 0:02:02]} Qe5 {[%emt 0:00:58]} 39. Ra4 {[%emt 0:00:42]} Rf6 {[%emt 0:01:32]} 40. Rxd4 {[%emt 0:04:20]} Rf1+ {[%emt 0:00:03]} 41. Kc2 {[%emt 0:01:04]} Rg1 {[%emt 0:00:30]} 42. Rf4 {[%emt 0:03:57]} Qa1 {[%emt 0:00:01]} 43. Qd4+ {[%emt 0:00:42]} Qxd4 {[%emt 0:00:05]} 44. Rxd4 {[%emt 0:00:01]} Rxg3 {[%emt 0:00:03]} 45. Ra4 {[%emt 0:00:22]} Rg4 {[%emt 0:00:13]} 46. Rxa7 {[%emt 0:00:26]} Rxh4 {[%emt 0:00:01]} 47. Ra1 {[%emt 0:00:26]} g5 {[%emt 0:01:52]} 48. Rb1 {[%emt 0:00:08]} Kf6 {[%emt 0:00:41]} 49. b4 {[%emt 0:00:23]} Ke6 {[%emt 0:01:55]} 50. b5 {[%emt 0:00:30]} Kd7 {[%emt 0:00:47]} 51. Kd3 {[%emt 0:00:18]} f5 {[%emt 0:00:17]} 52. b6 {[%emt 0:00:42]} Kc8 {[%emt 0:00:02]} 53. e3 {[%emt 0:00:46]} Rg4 {[%emt 0:00:50]} 54. Ke2 {[%emt 0:01:23]} h4 {[%emt 0:00:04]} 55. b7+ {[%emt 0:00:41]} Kb8 {[%emt 0:00:01]} 56. Rb6 {[%emt 0:00:11]} h3 {[%emt 0:00:35]} 57. Kf3 {[%emt 0:00:50]} Rg2 {[%emt 0:00:52]} 58. Rh6 {[%emt 0:00:26]} g4+ {[%emt 0:00:04]} 59. Kf4 {[%emt 0:00:02]} h2 {[%emt 0:00:20]} 60. Kxf5 {[%emt 0:00:14]} g3 {[%emt 0:02:50]} 0-1

[Event "1st SOA-GM Festival 2024"]
[Site "Bhubaneswar"]
[Date "2024.02.01"]
[Round "6.5"]
[White "Soham Kamotra"]
[Black "Ritviz, Parab"]
[Result "1-0"]
[WhiteElo "2348"]
[BlackElo "2391"]
[PlyCount "113"]
[EventDate "2024.02.01"]
[EventType "swiss"]
[EventCountry "IND"]
[TimeControl "5400+30"]

1. c4 {[%emt 0:00:03]} Nf6 {[%emt 0:02:08]} 2. g3 {[%emt 0:00:07]} e6 {[%emt 0:03:16]} 3. Bg2 {[%emt 0:00:18]} d5 {[%emt 0:00:25]} 4. Nf3 {[%emt 0:00:11]} Be7 {[%emt 0:08:47]} 5. O-O {[%emt 0:00:08]} O-O {[%emt 0:00:06]} 6. b3 {[%emt 0:00:14]} b6 {[%emt 0:07:41]} 7. d4 {[%emt 0:01:04]} c6 {[%emt 0:02:15]} 8. Bb2 {[%emt 0:10:01]} Ba6 {[%emt 0:09:24]} 9. Nbd2 {[%emt 0:05:38]} Nbd7 {[%emt 0:00:59]} 10. Ne5 {[%emt 0:03:01]} Rc8 {[%emt 0:01:11]} 11. Re1 {[%emt 0:06:07]} Nxe5 {[%emt 0:08:57]} 12. dxe5 {[%emt 0:00:03]} Nd7 {[%emt 0:01:20]} 13. Rc1 {[%emt 0:06:18]} b5 {[%emt 0:25:19]} 14. cxd5 {[%emt 0:06:51]} cxd5 {[%emt 0:00:13]} 15. Rxc8 {[%emt 0:06:43]} Qxc8 {[%emt 0:01:01]} 16. e4 {[%emt 0:06:45]} d4 {[%emt 0:07:03]} 17. Bxd4 {[%emt 0:02:31]} Bb4 {[%emt 0:04:40]} 18. Re3 {[%emt 0:01:03]} Rd8 {[%emt 0:01:11]} 19. Nf3 {[%emt 0:01:12]} Bb7 {[%emt 0:05:10]} 20. Qe2 {[%emt 0:02:29]} Qc1+ {[%emt 0:01:36]} 21. Bf1 {[%emt 0:03:08]} Nc5 {[%emt 0:06:01]} 22. Bb2 {[%emt 0:07:53]} Qb1 {[%emt 0:00:06]} 23. a3 {[%emt 0:00:08]} Ba5 {[%emt 0:01:34]} 24. b4 {[%emt 0:00:24]} Na4 {[%emt 0:00:39]} 25. bxa5 {[%emt 0:02:17]} Qxb2 {[%emt 0:00:37]} 26. Qxb2 {[%emt 0:05:53]} Nxb2 {[%emt 0:00:02]} 27. Bxb5 {[%emt 0:00:09]} a6 {[%emt 0:01:44]} 28. Be2 {[%emt 0:00:44]} Na4 {[%emt 0:00:02]} 29. Ne1 {[%emt 0:00:39]} Rc8 {[%emt 0:01:00]} 30. f3 {[%emt 0:00:33]} Rc5 {[%emt 0:00:30]} 31. Rb3 {[%emt 0:00:14]} Rc7 {[%emt 0:00:30]} 32. Kf2 {[%emt 0:00:58]} Kf8 {[%emt 0:00:05]} 33. Rb4 {[%emt 0:02:47]} Nc5 {[%emt 0:00:35]} 34. Rc4 {[%emt 0:01:44]} Ke7 {[%emt 0:00:02]} 35. Ke3 {[%emt 0:00:05]} Kd8 {[%emt 0:00:14]} 36. Rb4 {[%emt 0:03:06]} Nd7 {[%emt 0:00:26]} 37. Nd3 {[%emt 0:00:33]} Kc8 {[%emt 0:00:35]} 38. Kd2 {[%emt 0:00:25]} Nb8 {[%emt 0:01:18]} 39. Rb6 {[%emt 0:00:19]} Nd7 {[%emt 0:00:45]} 40. Rd6 {[%emt 0:00:22]} Nc5 {[%emt 0:00:30]} 41. Nxc5 {[%emt 0:00:39]} Rxc5 {[%emt 0:00:02]} 42. Bxa6 {[%emt 0:00:08]} Bxa6 {[%emt 0:00:55]} 43. Rxa6 {[%emt 0:00:02]} Kb7 {[%emt 0:00:06]} 44. Rb6+ {[%emt 0:02:07]} Kc7 {[%emt 0:00:21]} 45. Ra6 {[%emt 0:01:11]} Kb7 {[%emt 0:00:22]} 46. Rd6 {[%emt 0:00:02]} Rxa5 {[%emt 0:00:06]} 47. Rd7+ {[%emt 0:00:42]} Kc6 {[%emt 0:00:02]} 48. Rxf7 {[%emt 0:00:07]} Rxa3 {[%emt 0:00:12]} 49. Ke2 {[%emt 0:00:08]} g5 {[%emt 0:01:58]} 50. Rxh7 {[%emt 0:00:04]} Ra2+ {[%emt 0:00:13]} 51. Ke3 {[%emt 0:00:01]} Ra3+ {[%emt 0:00:10]} 52. Kf2 {[%emt 0:00:04]} Ra2+ {[%emt 0:01:19]} 53. Kg1 {[%emt 0:00:04]} Kc5 {[%emt 0:00:26]} 54. Rd7 {[%emt 0:00:06]} g4 {[%emt 0:00:37]} 55. fxg4 {[%emt 0:00:05]} Re2 {[%emt 0:00:06]} 56. g5 {[%emt 0:01:32]} Rxe4 {[%emt 0:00:06]} 57. g6 {[%emt 0:00:08]} 1-0

[Event "1st SOA-GM Festival 2024"]
[Site "Bhubaneswar"]
[Date "2024.02.01"]
[Round "6.6"]
[White "Savchenko, Boris"]
[Black "Dhananjay S"]
[Result "1-0"]
[WhiteElo "2489"]
[BlackElo "2151"]
[PlyCount "87"]
[EventDate "2024.02.01"]
[EventType "swiss"]
[EventCountry "IND"]
[TimeControl "5400+30"]

1. e4 {[%emt 0:00:21]} c6 {[%emt 0:01:06]} 2. d4 {[%emt 0:00:16]} d5 {[%emt 0:00:08]} 3. e5 {[%emt 0:00:26]} c5 {[%emt 0:00:05]} 4. dxc5 {[%emt 0:00:09]} e6 {[%emt 0:00:03]} 5. Qg4 {[%emt 0:00:12]} Nd7 {[%emt 0:10:23]} 6. Nf3 {[%emt 0:11:16]} Nxc5 {[%emt 0:21:26]} 7. Be3 {[%emt 0:16:08]} f5 {[%emt 0:15:38]} 8. Qh5+ {[%emt 0:09:17]} g6 {[%emt 0:00:13]} 9. Qh3 {[%emt 0:00:06]} Qb6 {[%emt 0:05:40]} 10. Bd4 {[%emt 0:00:43]} Ne7 {[%emt 0:02:14]} 11. Nc3 {[%emt 0:00:45]} Nc6 {[%emt 0:01:50]} 12. Bb5 {[%emt 0:01:03]} a6 {[%emt 0:08:25]} 13. Bxc6+ {[%emt 0:03:15]} bxc6 {[%emt 0:01:39]} 14. Nh4 {[%emt 0:05:24]} Rg8 {[%emt 0:03:24]} 15. Qe3 {[%emt 0:07:53]} Qa5 {[%emt 0:00:31]} 16. O-O {[%emt 0:08:46]} Nd7 {[%emt 0:00:29]} 17. Ne2 {[%emt 0:00:08]} c5 {[%emt 0:01:28]} 18. Bc3 {[%emt 0:00:06]} Qd8 {[%emt 0:00:54]} 19. Qg3 {[%emt 0:01:48]} g5 {[%emt 0:05:52]} 20. Rad1 {[%emt 0:00:17]} Qe7 {[%emt 0:03:16]} 21. Nf4 {[%emt 0:03:12]} Bb7 {[%emt 0:01:20]} 22. Ba5 {[%emt 0:07:37]} Qf7 {[%emt 0:05:20]} 23. Qb3 {[%emt 0:00:40]} Rb8 {[%emt 0:00:32]} 24. Bc7 {[%emt 0:02:11]} c4 {[%emt 0:00:18]} 25. Qa4 {[%emt 0:00:20]} Rc8 {[%emt 0:01:41]} 26. Nxd5 {[%emt 0:00:54]} Bxd5 {[%emt 0:01:48]} 27. Rxd5 {[%emt 0:01:06]} exd5 {[%emt 0:00:52]} 28. Qxa6 {[%emt 0:00:15]} Nb6 {[%emt 0:05:06]} 29. Bxb6 {[%emt 0:00:07]} Qe6 {[%emt 0:00:06]} 30. Nf3 {[%emt 0:00:09]} Rb8 {[%emt 0:02:23]} 31. Qa4+ {[%emt 0:00:56]} Qd7 {[%emt 0:00:02]} 32. Qa5 {[%emt 0:03:10]} Qc6 {[%emt 0:00:44]} 33. Be3 {[%emt 0:02:36]} Ra8 {[%emt 0:01:04]} 34. Qd2 {[%emt 0:01:31]} f4 {[%emt 0:00:05]} 35. Bd4 {[%emt 0:00:10]} Qe6 {[%emt 0:01:00]} 36. Bc3 {[%emt 0:01:02]} Bc5 {[%emt 0:00:03]} 37. Rd1 {[%emt 0:03:38]} Rxa2 {[%emt 0:00:46]} 38. Qxd5 {[%emt 0:00:21]} Qxd5 {[%emt 0:00:03]} 39. Rxd5 {[%emt 0:00:05]} Ba7 {[%emt 0:01:12]} 40. Kf1 {[%emt 0:00:28]} Ra1+ {[%emt 0:00:33]} 41. Ke2 {[%emt 0:00:15]} g4 {[%emt 0:00:33]} 42. Nd2 {[%emt 0:00:32]} Rg1 {[%emt 0:00:40]} 43. Ne4 {[%emt 0:00:24]} Rg6 {[%emt 0:00:22]} 44. Nf6+ {[%emt 0:00:46]} 1-0

[Event "1st SOA-GM Festival 2024"]
[Site "Bhubaneswar"]
[Date "2024.02.01"]
[Round "6.7"]
[White "Neelash Saha"]
[Black "Priansh Das"]
[Result "1-0"]
[WhiteElo "2446"]
[BlackElo "1910"]
[PlyCount "93"]
[EventDate "2024.02.01"]
[EventType "swiss"]
[EventCountry "IND"]
[TimeControl "5400+30"]

1. d4 {[%emt 0:00:07]} Nf6 {[%emt 0:00:08]} 2. c4 {[%emt 0:00:27]} g6 {[%emt 0:00:06]} 3. Nc3 {[%emt 0:00:04]} Bg7 {[%emt 0:00:05]} 4. e4 {[%emt 0:00:04]} d6 {[%emt 0:00:05]} 5. h3 {[%emt 0:00:03]} O-O {[%emt 0:00:30]} 6. Be3 {[%emt 0:00:04]} e5 {[%emt 0:01:56]} 7. d5 {[%emt 0:00:05]} a5 {[%emt 0:00:20]} 8. g4 {[%emt 0:00:05]} Na6 {[%emt 0:01:06]} 9. Nge2 {[%emt 0:00:06]} c6 {[%emt 0:03:02]} 10. Ng3 {[%emt 0:00:59]} cxd5 {[%emt 0:05:12]} 11. cxd5 {[%emt 0:00:04]} Bd7 {[%emt 0:03:02]} 12. Qd2 {[%emt 0:04:06]} Nc5 {[%emt 0:04:23]} 13. f3 {[%emt 0:00:32]} Rb8 {[%emt 0:04:40]} 14. Bb5 {[%emt 0:01:28]} Bxb5 {[%emt 0:02:55]} 15. Nxb5 {[%emt 0:00:06]} Qb6 {[%emt 0:02:22]} 16. Qe2 {[%emt 0:01:16]} h6 {[%emt 0:14:43]} 17. h4 {[%emt 0:01:37]} Rfc8 {[%emt 0:04:43]} 18. h5 {[%emt 0:06:22]} g5 {[%emt 0:00:49]} 19. O-O {[%emt 0:00:08]} Bf8 {[%emt 0:03:15]} 20. Rfc1 {[%emt 0:00:44]} Ne8 {[%emt 0:02:10]} 21. Nf5 {[%emt 0:00:31]} Kh7 {[%emt 0:02:43]} 22. Rc2 {[%emt 0:08:27]} Ng7 {[%emt 0:03:56]} 23. Nxg7 {[%emt 0:01:35]} Kxg7 {[%emt 0:00:05]} 24. Rac1 {[%emt 0:00:04]} a4 {[%emt 0:02:49]} 25. Na3 {[%emt 0:16:58]} Ra8 {[%emt 0:17:08]} 26. Nc4 {[%emt 0:06:40]} Qa7 {[%emt 0:02:25]} 27. Bf2 {[%emt 0:02:09]} b6 {[%emt 0:04:05]} 28. Ne3 {[%emt 0:00:43]} Qd7 {[%emt 0:04:01]} 29. Nf5+ {[%emt 0:00:28]} Kh7 {[%emt 0:00:40]} 30. Be3 {[%emt 0:00:05]} b5 {[%emt 0:00:56]} 31. Nxd6 {[%emt 0:02:30]} Bxd6 {[%emt 0:01:13]} 32. Bxc5 {[%emt 0:00:06]} Bb8 {[%emt 0:05:27]} 33. Bf2 {[%emt 0:00:26]} Ba7 {[%emt 0:01:36]} 34. Rc6 {[%emt 0:00:29]} Rxc6 {[%emt 0:00:51]} 35. Rxc6 {[%emt 0:00:09]} Rc8 {[%emt 0:00:16]} 36. Bxa7 {[%emt 0:09:07]} Rxc6 {[%emt 0:01:50]} 37. dxc6 {[%emt 0:00:05]} Qxa7+ {[%emt 0:00:15]} 38. Qf2 {[%emt 0:00:04]} Qa5 {[%emt 0:00:31]} 39. Qc2 {[%emt 0:00:42]} Qc7 {[%emt 0:01:21]} 40. Kf1 {[%emt 0:00:18]} Kg8 {[%emt 0:00:20]} 41. Qc5 {[%emt 0:00:11]} b4 {[%emt 0:00:04]} 42. Ke2 {[%emt 0:01:11]} Kg7 {[%emt 0:00:30]} 43. Kd3 {[%emt 0:00:38]} Qd8+ {[%emt 0:02:14]} 44. Kc4 {[%emt 0:00:54]} Qd2 {[%emt 0:00:05]} 45. c7 {[%emt 0:00:35]} Qc2+ {[%emt 0:00:55]} 46. Kb5 {[%emt 0:00:07]} Qd3+ {[%emt 0:00:06]} 47. Ka5 {[%emt 0:00:12]} 1-0